[Event "Late-Titled-Tuesday-Blitz-March-12-2024"]
[Site "Chess.com"]
[Date "2024.03.12"]
[Round "9"]
[White "MikaelyanArman"]
[Black "Msb2"]
[Result "1-0"]
[WhiteElo "2866"]
[BlackElo "3014"]
[TimeControl "180+1"]
[EndTime "15:44:30 PDT"]
[Termination "MikaelyanArman won by checkmate"]

1. d4 {[%clk 0:02:45.2]} 1... d5 {[%clk 0:03:00.3]} 2. Nf3 {[%clk 0:02:43.9]}
2... e6 {[%clk 0:03:00.5]} 3. c4 {[%clk 0:02:43.7]} 3... Nf6 {[%clk 0:03:00.5]}
4. g3 {[%clk 0:02:39.2]} 4... Nc6 {[%clk 0:03:00.5]} 5. Bg2 {[%clk 0:02:37.4]}
5... Bd6 {[%clk 0:03:01.2]} 6. Nc3 {[%clk 0:02:34.5]} 6... O-O {[%clk
0:02:59.5]} 7. b3 {[%clk 0:02:31.6]} 7... dxc4 {[%clk 0:02:56.6]} 8. bxc4 {[%clk
0:02:31.8]} 8... Bb4 {[%clk 0:02:49.8]} 9. Bb2 {[%clk 0:02:24.4]} 9... e5 {[%clk
0:02:45.8]} 10. d5 {[%clk 0:02:13.3]} 10... Na5 {[%clk 0:02:03.5]} 11. Nxe5
{[%clk 0:01:44.1]} 11... Qe7 {[%clk 0:01:52.8]} 12. f4 {[%clk 0:01:29.9]} 12...
Ng4 {[%clk 0:01:52.5]} 13. Qd3 {[%clk 0:01:12.2]} 13... Nxe5 {[%clk 0:01:31.5]}
14. fxe5 {[%clk 0:01:13.1]} 14... Qxe5 {[%clk 0:01:32.4]} 15. O-O {[%clk
0:01:11.2]} 15... Bg4 {[%clk 0:01:23.8]} 16. a3 {[%clk 0:00:59.5]} 16... Bc5+
{[%clk 0:01:22.6]} 17. Kh1 {[%clk 0:00:59]} 17... Qe3 {[%clk 0:01:15.5]} 18. Ne4
{[%clk 0:00:52.8]} 18... Bb6 {[%clk 0:00:42.1]} 19. c5 {[%clk 0:00:43.6]} 19...
Bxc5 {[%clk 0:00:42]} 20. Nxc5 {[%clk 0:00:42.8]} 20... Qxc5 {[%clk 0:00:42.9]}
21. Bd4 {[%clk 0:00:39.3]} 21... Qc4 {[%clk 0:00:42]} 22. Qxc4 {[%clk
0:00:24.9]} 22... Nxc4 {[%clk 0:00:42.9]} 23. Rac1 {[%clk 0:00:25.4]} 23... b5
{[%clk 0:00:35.1]} 24. d6 {[%clk 0:00:22.9]} 24... Rad8 {[%clk 0:00:34.5]} 25.
Bxa7 {[%clk 0:00:12.5]} 25... cxd6 {[%clk 0:00:35]} 26. a4 {[%clk 0:00:12.3]}
26... Nd2 {[%clk 0:00:33.7]} 27. Rf4 {[%clk 0:00:09.7]} 27... Bxe2 {[%clk
0:00:27.7]} 28. Rc2 {[%clk 0:00:10.3]} 28... bxa4 {[%clk 0:00:15.7]} 29. Rxd2
{[%clk 0:00:10.2]} 29... Bb5 {[%clk 0:00:16.6]} 30. Bd4 {[%clk 0:00:09.3]} 30...
f6 {[%clk 0:00:15.7]} 31. Bd5+ {[%clk 0:00:09.4]} 31... Kh8 {[%clk 0:00:16.1]}
32. Kg2 {[%clk 0:00:07.7]} 32... Rc8 {[%clk 0:00:16.3]} 33. Rb2 {[%clk
0:00:07.2]} 33... Bc6 {[%clk 0:00:15.9]} 34. Bxc6 {[%clk 0:00:06.6]} 34... Rxc6
{[%clk 0:00:16.8]} 35. Bf2 {[%clk 0:00:06.4]} 35... Ra6 {[%clk 0:00:17]} 36. Ra2
{[%clk 0:00:06.4]} 36... Rfa8 {[%clk 0:00:17.7]} 37. Be1 {[%clk 0:00:06.4]}
37... Kg8 {[%clk 0:00:18.3]} 38. Bb4 {[%clk 0:00:06.3]} 38... Kf7 {[%clk
0:00:18.9]} 39. Ba3 {[%clk 0:00:06.3]} 39... Rc6 {[%clk 0:00:18.7]} 40. Rb4
{[%clk 0:00:04.7]} 40... Ra7 {[%clk 0:00:18.3]} 41. Rab2 {[%clk 0:00:04.6]}
41... g5 {[%clk 0:00:17.9]} 42. Rb7+ {[%clk 0:00:04.8]} 42... Rxb7 {[%clk
0:00:18.6]} 43. Rxb7+ {[%clk 0:00:05.5]} 43... Kg6 {[%clk 0:00:19.5]} 44. Ra7
{[%clk 0:00:06.2]} 44... Rc4 {[%clk 0:00:19.1]} 45. Bxd6 {[%clk 0:00:06.5]}
45... h5 {[%clk 0:00:19.5]} 46. h3 {[%clk 0:00:04.7]} 46... Kf5 {[%clk
0:00:19.9]} 47. Ra5+ {[%clk 0:00:04.4]} 47... Ke4 {[%clk 0:00:19.9]} 48. g4
{[%clk 0:00:02.9]} 48... Rc2+ {[%clk 0:00:19.6]} 49. Kg1 {[%clk 0:00:02.1]}
49... Rc1+ {[%clk 0:00:19.6]} 50. Kg2 {[%clk 0:00:02.2]} 50... Rc2+ {[%clk
0:00:20.5]} 51. Kg1 {[%clk 0:00:02.8]} 51... h4 {[%clk 0:00:20.1]} 52. Rxa4+
{[%clk 0:00:02.7]} 52... Kd5 {[%clk 0:00:19.9]} 53. Be7 {[%clk 0:00:02.8]} 53...
Rc1+ {[%clk 0:00:19.2]} 54. Kg2 {[%clk 0:00:03]} 54... Rc2+ {[%clk 0:00:20.1]}
55. Kg1 {[%clk 0:00:03.5]} 55... Rc1+ {[%clk 0:00:20.7]} 56. Kf2 {[%clk
0:00:03.8]} 56... Rc2+ {[%clk 0:00:21.6]} 57. Kf1 {[%clk 0:00:04.4]} 57... Rc1+
{[%clk 0:00:21.5]} 58. Ke2 {[%clk 0:00:05]} 58... Rc2+ {[%clk 0:00:21.3]} 59.
Kd1 {[%clk 0:00:05.4]} 59... Rc3 {[%clk 0:00:21.4]} 60. Bxf6 {[%clk 0:00:05.2]}
60... Rxh3 {[%clk 0:00:22.1]} 61. Bxg5 {[%clk 0:00:05.6]} 61... Rh1+ {[%clk
0:00:22.2]} 62. Ke2 {[%clk 0:00:05.9]} 62... h3 {[%clk 0:00:22.7]} 63. Kf3
{[%clk 0:00:06.3]} 63... Rg1 {[%clk 0:00:20.8]} 64. Bf4 {[%clk 0:00:05.7]} 64...
Ke6 {[%clk 0:00:19.5]} 65. Ra5 {[%clk 0:00:05.7]} 65... Kf7 {[%clk 0:00:19.6]}
66. Rh5 {[%clk 0:00:05.9]} 66... Rf1+ {[%clk 0:00:19.5]} 67. Kg3 {[%clk
0:00:06.4]} 67... Rg1+ {[%clk 0:00:19.4]} 68. Kf3 {[%clk 0:00:06.8]} 68... Rf1+
{[%clk 0:00:19.7]} 69. Kg3 {[%clk 0:00:07.1]} 69... Rg1+ {[%clk 0:00:20.3]} 70.
Kxh3 {[%clk 0:00:07.8]} 70... Kg6 {[%clk 0:00:19.8]} 71. Rh6+ {[%clk 0:00:07.9]}
71... Kg7 {[%clk 0:00:20.1]} 72. Ra6 {[%clk 0:00:08.8]} 72... Rf1 {[%clk
0:00:20]} 73. Be5+ {[%clk 0:00:09]} 73... Kh7 {[%clk 0:00:20.3]} 74. Kh4 {[%clk
0:00:09.5]} 74... Re1 {[%clk 0:00:17.2]} 75. Bf4 {[%clk 0:00:09.6]} 75... Rb1
{[%clk 0:00:14.3]} 76. Kh5 {[%clk 0:00:09.5]} 76... Rb5+ {[%clk 0:00:09.9]} 77.
g5 {[%clk 0:00:09.9]} 77... Kg7 {[%clk 0:00:10.3]} 78. Ra7+ {[%clk 0:00:10.1]}
78... Kg8 {[%clk 0:00:10.5]} 79. Kh6 {[%clk 0:00:10.8]} 79... Rf5 {[%clk
0:00:06.2]} 80. Be3 {[%clk 0:00:08.6]} 80... Rf3 {[%clk 0:00:06.5]} 81. Bd4
{[%clk 0:00:08.4]} 81... Rf4 {[%clk 0:00:06.3]} 82. Ra8+ {[%clk 0:00:07.7]}
82... Kf7 {[%clk 0:00:06.5]} 83. g6+ {[%clk 0:00:08.3]} 83... Ke6 {[%clk
0:00:07.2]} 84. g7 {[%clk 0:00:08.7]} 84... Rh4+ {[%clk 0:00:07.7]} 85. Kg5
{[%clk 0:00:08.6]} 85... Rxd4 {[%clk 0:00:08]} 86. g8=Q+ {[%clk 0:00:08.9]}
86... Ke5 {[%clk 0:00:08.6]} 87. Re8+ {[%clk 0:00:08.8]} 87... Kd6 {[%clk
0:00:08.4]} 88. Rd8+ {[%clk 0:00:09.3]} 88... Kc5 {[%clk 0:00:09]} 89. Rxd4
{[%clk 0:00:09.9]} 89... Kxd4 {[%clk 0:00:09.9]} 90. Qe8 {[%clk 0:00:10.2]}
90... Kc5 {[%clk 0:00:08.4]} 91. Kf5 {[%clk 0:00:11.1]} 91... Kc4 {[%clk
0:00:08.9]} 92. Ke5 {[%clk 0:00:11.6]} 92... Kc3 {[%clk 0:00:09.8]} 93. Qd7
{[%clk 0:00:11.8]} 93... Kc2 {[%clk 0:00:10.2]} 94. Ke4 {[%clk 0:00:12.4]} 94...
Kc3 {[%clk 0:00:10.6]} 95. Qc6+ {[%clk 0:00:11.9]} 95... Kb4 {[%clk 0:00:11.5]}
96. Kd4 {[%clk 0:00:12]} 96... Ka5 {[%clk 0:00:12.4]} 97. Qb7 {[%clk 0:00:12.1]}
97... Ka4 {[%clk 0:00:12.9]} 98. Kc4 {[%clk 0:00:12.7]} 98... Ka3 {[%clk
0:00:13.8]} 99. Qb3# {[%clk 0:00:12.8]} 1-0

[Event "Late-Titled-Tuesday-Blitz-March-12-2024"]
[Site "Chess.com"]
[Date "2024.03.12"]
[Round "9"]
[White "Smoking_Crow"]
[Black "Moultino06"]
[Result "1/2-1/2"]
[WhiteElo "2643"]
[BlackElo "2813"]
[TimeControl "180+1"]
[EndTime "15:44:50 PDT"]
[Termination "Game drawn - insufficient material"]

1. e4 {[%clk 0:02:33.5]} 1... Nc6 {[%clk 0:02:56.3]} 2. Nf3 {[%clk 0:02:33]}
2... d6 {[%clk 0:02:56]} 3. Bb5 {[%clk 0:02:33.4]} 3... Nf6 {[%clk 0:02:55.5]}
4. Nc3 {[%clk 0:02:31.9]} 4... g6 {[%clk 0:02:52.9]} 5. d4 {[%clk 0:02:31.6]}
5... a6 {[%clk 0:02:50.2]} 6. Bxc6+ {[%clk 0:02:31.7]} 6... bxc6 {[%clk
0:02:51.1]} 7. h3 {[%clk 0:02:32.1]} 7... Bg7 {[%clk 0:02:50.8]} 8. Be3 {[%clk
0:02:32]} 8... Rb8 {[%clk 0:02:49.6]} 9. b3 {[%clk 0:02:29.6]} 9... O-O {[%clk
0:02:45.7]} 10. Qd2 {[%clk 0:02:29.7]} 10... d5 {[%clk 0:02:39.7]} 11. e5 {[%clk
0:02:26.8]} 11... Ne4 {[%clk 0:02:39.8]} 12. Nxe4 {[%clk 0:02:20.8]} 12... dxe4
{[%clk 0:02:40.7]} 13. Ng5 {[%clk 0:02:11.4]} 13... c5 {[%clk 0:02:27.9]} 14.
Nxe4 {[%clk 0:02:03.2]} 14... cxd4 {[%clk 0:02:26.8]} 15. Qxd4 {[%clk
0:01:53.3]} 15... Bb7 {[%clk 0:02:12.6]} 16. f3 {[%clk 0:01:47.1]} 16... Qxd4
{[%clk 0:01:17.3]} 17. Bxd4 {[%clk 0:01:47.9]} 17... Bxe4 {[%clk 0:01:14.3]} 18.
fxe4 {[%clk 0:01:48.1]} 18... Rb5 {[%clk 0:00:55.5]} 19. c4 {[%clk 0:01:43.9]}
19... Ra5 {[%clk 0:00:55.4]} 20. Bc3 {[%clk 0:01:40.4]} 20... Rc5 {[%clk
0:00:54.7]} 21. Bd4 {[%clk 0:00:45]} 21... Ra5 {[%clk 0:00:53.5]} 22. Bc3 {[%clk
0:00:15.8]} 22... Rc5 {[%clk 0:00:52.6]} 23. O-O-O {[%clk 0:00:16.2]} 23... Bxe5
{[%clk 0:00:51.6]} 24. Bxe5 {[%clk 0:00:16.5]} 24... Rxe5 {[%clk 0:00:51.7]} 25.
Rhe1 {[%clk 0:00:16.5]} 25... Rc8 {[%clk 0:00:36.3]} 26. Rd5 {[%clk 0:00:11.9]}
26... Re6 {[%clk 0:00:35.2]} 27. e5 {[%clk 0:00:11]} 27... f6 {[%clk 0:00:29.9]}
28. Red1 {[%clk 0:00:11.1]} 28... fxe5 {[%clk 0:00:27.2]} 29. Re1 {[%clk
0:00:11.5]} 29... e4 {[%clk 0:00:26.7]} 30. Rd4 {[%clk 0:00:11.9]} 30... Kf7
{[%clk 0:00:19.1]} 31. Rdxe4 {[%clk 0:00:12.2]} 31... Rxe4 {[%clk 0:00:19]} 32.
Rxe4 {[%clk 0:00:13.1]} 32... e6 {[%clk 0:00:17.6]} 33. Re5 {[%clk 0:00:13.3]}
33... c5 {[%clk 0:00:16.3]} 34. Kd2 {[%clk 0:00:12.7]} 34... Kf6 {[%clk
0:00:15.8]} 35. Re3 {[%clk 0:00:13.1]} 35... Rd8+ {[%clk 0:00:15.5]} 36. Ke2
{[%clk 0:00:13.6]} 36... e5 {[%clk 0:00:13.8]} 37. Rf3+ {[%clk 0:00:10.6]} 37...
Ke6 {[%clk 0:00:13.9]} 38. a3 {[%clk 0:00:08.3]} 38... a5 {[%clk 0:00:13.6]} 39.
Rc3 {[%clk 0:00:07]} 39... e4 {[%clk 0:00:12.5]} 40. Ke3 {[%clk 0:00:07.4]}
40... Ke5 {[%clk 0:00:12.6]} 41. Ke2 {[%clk 0:00:07.2]} 41... Kd4 {[%clk
0:00:11.1]} 42. Rc2 {[%clk 0:00:07.1]} 42... e3 {[%clk 0:00:10.1]} 43. Rc1
{[%clk 0:00:06.9]} 43... Ke4 {[%clk 0:00:09.9]} 44. Rc2 {[%clk 0:00:06.4]} 44...
Rd3 {[%clk 0:00:09.2]} 45. Rb2 {[%clk 0:00:06.4]} 45... Rc3 {[%clk 0:00:08.5]}
46. b4 {[%clk 0:00:06.9]} 46... axb4 {[%clk 0:00:07.1]} 47. axb4 {[%clk
0:00:07.8]} 47... cxb4 {[%clk 0:00:03.6]} 48. c5 {[%clk 0:00:06.9]} 48... Rc4
{[%clk 0:00:02.9]} 49. c6 {[%clk 0:00:06.2]} 49... Kd4 {[%clk 0:00:02.8]} 50. c7
{[%clk 0:00:06]} 50... Kc3 {[%clk 0:00:03.3]} 51. Rb1 {[%clk 0:00:04.1]} 51...
Kd4 {[%clk 0:00:02.8]} 52. Rxb4 {[%clk 0:00:03.4]} 52... Rxb4 {[%clk 0:00:03.7]}
53. c8=Q {[%clk 0:00:03.9]} 53... Rb2+ {[%clk 0:00:04.6]} 54. Kf3 {[%clk
0:00:03.9]} 54... Rf2+ {[%clk 0:00:02.8]} 55. Kg3 {[%clk 0:00:04.5]} 55... Rf5
{[%clk 0:00:02.7]} 56. Qd7+ {[%clk 0:00:04.8]} 56... Kc3 {[%clk 0:00:02.2]} 57.
Qc7+ {[%clk 0:00:04.4]} 57... Kd2 {[%clk 0:00:02.3]} 58. Qd6+ {[%clk 0:00:05.1]}
58... Ke1 {[%clk 0:00:02.4]} 59. Qb4+ {[%clk 0:00:04.6]} 59... Kd1 {[%clk
0:00:02.4]} 60. Qd4+ {[%clk 0:00:04.3]} 60... Ke2 {[%clk 0:00:02.9]} 61. h4
{[%clk 0:00:04.1]} 61... h5 {[%clk 0:00:02.6]} 62. Qe4 {[%clk 0:00:03.9]} 62...
Kd2 {[%clk 0:00:02.5]} 63. Qd4+ {[%clk 0:00:04.2]} 63... Ke2 {[%clk 0:00:03]}
64. Qd6 {[%clk 0:00:04.4]} 64... Ke1 {[%clk 0:00:02.1]} 65. Qxg6 {[%clk
0:00:04.8]} 65... Rf2 {[%clk 0:00:01.9]} 66. Qxh5 {[%clk 0:00:04.6]} 66... e2
{[%clk 0:00:02]} 67. Qa5+ {[%clk 0:00:04.6]} 67... Kf1 {[%clk 0:00:02.4]} 68.
Qb5 {[%clk 0:00:05.1]} 68... Kg1 {[%clk 0:00:01.9]} 69. Qb1+ {[%clk 0:00:05]}
69... Rf1 {[%clk 0:00:02.4]} 70. Qb6+ {[%clk 0:00:04.7]} 70... Kh1 {[%clk
0:00:02.9]} 71. Kh3 {[%clk 0:00:04.8]} 71... e1=Q {[%clk 0:00:02]} 72. Qc6
{[%clk 0:00:05.4]} 72... Qe3+ {[%clk 0:00:01.6]} 73. g3+ {[%clk 0:00:05.8]}
73... Qf3 {[%clk 0:00:02.3]} 74. Qc2 {[%clk 0:00:05.8]} 74... Qf2 {[%clk
0:00:02.4]} 75. Qc6+ {[%clk 0:00:05.6]} 75... Qf3 {[%clk 0:00:02.8]} 76. Qc2
{[%clk 0:00:06.3]} 76... Qf2 {[%clk 0:00:02.9]} 77. Qxf2 {[%clk 0:00:05.7]}
77... Rxf2 {[%clk 0:00:03.1]} 78. h5 {[%clk 0:00:06.1]} 78... Rh2+ {[%clk
0:00:02.6]} 79. Kg4 {[%clk 0:00:06.7]} 79... Kg2 {[%clk 0:00:03.5]} 80. Kg5
{[%clk 0:00:06.9]} 80... Kxg3 {[%clk 0:00:03.3]} 81. h6 {[%clk 0:00:07.5]} 81...
Kf3 {[%clk 0:00:02.1]} 82. Kg6 {[%clk 0:00:08]} 82... Kf4 {[%clk 0:00:02.4]} 83.
h7 {[%clk 0:00:08.5]} 83... Ke5 {[%clk 0:00:02.9]} 84. Kg7 {[%clk 0:00:08.9]}
84... Ke6 {[%clk 0:00:03]} 85. h8=Q {[%clk 0:00:08.7]} 85... Rxh8 {[%clk
0:00:03.4]} 86. Kxh8 {[%clk 0:00:09.2]} 1/2-1/2

[Event "Late-Titled-Tuesday-Blitz-March-12-2024"]
[Site "Chess.com"]
[Date "2024.03.12"]
[Round "9"]
[White "artin10862"]
[Black "Sina_Movahed"]
[Result "0-1"]
[WhiteElo "2893"]
[BlackElo "3040"]
[TimeControl "180+1"]
[EndTime "15:44:59 PDT"]
[Termination "Sina_Movahed won by checkmate"]

1. d4 {[%clk 0:02:57.8]} 1... Nf6 {[%clk 0:02:59.8]} 2. Nf3 {[%clk 0:02:55.5]}
2... g6 {[%clk 0:03:00.3]} 3. Bf4 {[%clk 0:02:53.8]} 3... Bg7 {[%clk 0:03:00.3]}
4. Nc3 {[%clk 0:02:53.4]} 4... O-O {[%clk 0:03:00.3]} 5. e4 {[%clk 0:02:53.3]}
5... d6 {[%clk 0:02:59.3]} 6. Be2 {[%clk 0:02:46.5]} 6... Bg4 {[%clk 0:02:37]}
7. O-O {[%clk 0:02:37.5]} 7... Nc6 {[%clk 0:02:37.2]} 8. d5 {[%clk 0:02:29.4]}
8... Bxf3 {[%clk 0:02:23.9]} 9. Bxf3 {[%clk 0:02:28.5]} 9... Ne5 {[%clk
0:02:24.8]} 10. Be2 {[%clk 0:02:26.2]} 10... c6 {[%clk 0:02:14.5]} 11. Bxe5
{[%clk 0:02:10.2]} 11... dxe5 {[%clk 0:02:15.4]} 12. dxc6 {[%clk 0:02:10.9]}
12... bxc6 {[%clk 0:02:10]} 13. Bc4 {[%clk 0:02:05.3]} 13... Qb6 {[%clk
0:02:07]} 14. Bb3 {[%clk 0:02:04.6]} 14... e6 {[%clk 0:02:07.2]} 15. Qe2 {[%clk
0:02:03.1]} 15... Rfd8 {[%clk 0:02:05.8]} 16. Na4 {[%clk 0:02:00.1]} 16... Qb4
{[%clk 0:02:05.3]} 17. Rfe1 {[%clk 0:01:58.2]} 17... h5 {[%clk 0:01:59.2]} 18.
c3 {[%clk 0:01:57.5]} 18... Qe7 {[%clk 0:01:56.7]} 19. Rad1 {[%clk 0:01:54.3]}
19... Bh6 {[%clk 0:01:53.5]} 20. g3 {[%clk 0:01:52.3]} 20... Kg7 {[%clk
0:01:49.5]} 21. Bc4 {[%clk 0:01:50.7]} 21... h4 {[%clk 0:01:49.6]} 22. Kg2
{[%clk 0:01:50.4]} 22... Bg5 {[%clk 0:01:48.8]} 23. b4 {[%clk 0:01:48.9]} 23...
Rh8 {[%clk 0:01:45.6]} 24. Nc5 {[%clk 0:01:46.1]} 24... a5 {[%clk 0:01:44.1]}
25. Qf3 {[%clk 0:01:17.3]} 25... axb4 {[%clk 0:01:33.2]} 26. cxb4 {[%clk
0:01:17.2]} 26... h3+ {[%clk 0:01:14.4]} 27. Kg1 {[%clk 0:01:14.7]} 27... Rhd8
{[%clk 0:01:11.9]} 28. a3 {[%clk 0:01:06.8]} 28... Bd2 {[%clk 0:01:05.9]} 29.
Rf1 {[%clk 0:00:52.2]} 29... Rd4 {[%clk 0:01:00.2]} 30. Qe2 {[%clk 0:00:44.8]}
30... Rad8 {[%clk 0:00:55.7]} 31. Kh1 {[%clk 0:00:33.3]} 31... Kg8 {[%clk
0:00:51]} 32. f3 {[%clk 0:00:32.9]} 32... Kg7 {[%clk 0:00:50.7]} 33. Nb3 {[%clk
0:00:32.5]} 33... Bc3 {[%clk 0:00:46.7]} 34. Nxd4 {[%clk 0:00:32.6]} 34... Bxd4
{[%clk 0:00:43.2]} 35. Qc2 {[%clk 0:00:28.8]} 35... Qa7 {[%clk 0:00:40.3]} 36.
Rd3 {[%clk 0:00:28.6]} 36... Ne8 {[%clk 0:00:36]} 37. Ba2 {[%clk 0:00:25.5]}
37... Qa6 {[%clk 0:00:30.1]} 38. Rfd1 {[%clk 0:00:25.4]} 38... Ra8 {[%clk
0:00:25.8]} 39. Bc4 {[%clk 0:00:23.2]} 39... Qa7 {[%clk 0:00:25.5]} 40. Rb3
{[%clk 0:00:23.5]} 40... Nd6 {[%clk 0:00:23.7]} 41. Bf1 {[%clk 0:00:23.9]} 41...
Qb6 {[%clk 0:00:20.9]} 42. Bxh3 {[%clk 0:00:23.1]} 42... Nb5 {[%clk 0:00:21.6]}
43. Qc1 {[%clk 0:00:19.2]} 43... Rh8 {[%clk 0:00:16.5]} 44. Kg2 {[%clk
0:00:15.6]} 44... Qa6 {[%clk 0:00:15.6]} 45. Qc4 {[%clk 0:00:12.9]} 45... Qa4
{[%clk 0:00:15.5]} 46. Rdd3 {[%clk 0:00:09.1]} 46... Nd6 {[%clk 0:00:14.5]} 47.
Qc2 {[%clk 0:00:07.5]} 47... c5 {[%clk 0:00:14]} 48. bxc5 {[%clk 0:00:07.2]}
48... Rc8 {[%clk 0:00:14.6]} 49. Rbc3 {[%clk 0:00:04.8]} 49... Qa5 {[%clk
0:00:14.5]} 50. cxd6 {[%clk 0:00:04.7]} 50... Rxc3 {[%clk 0:00:14.4]} 51. Rxc3
{[%clk 0:00:05.1]} 51... Bxc3 {[%clk 0:00:15.1]} 52. d7 {[%clk 0:00:04.4]} 52...
Bd4 {[%clk 0:00:15.7]} 53. Kf1 {[%clk 0:00:03.4]} 53... Qb5+ {[%clk 0:00:15.6]}
54. Qe2 {[%clk 0:00:03.5]} 54... Qb1+ {[%clk 0:00:15.8]} 55. Qe1 {[%clk
0:00:02.6]} 55... Qb5+ {[%clk 0:00:13.6]} 56. Qe2 {[%clk 0:00:03.2]} 56... Qxd7
{[%clk 0:00:14.3]} 57. Qc4 {[%clk 0:00:03.5]} 57... Qb7 {[%clk 0:00:14]} 58. Qd3
{[%clk 0:00:02.9]} 58... Qb2 {[%clk 0:00:14]} 59. Qe2 {[%clk 0:00:03.2]} 59...
Qc1+ {[%clk 0:00:14]} 60. Qe1 {[%clk 0:00:03.7]} 60... Qxa3 {[%clk 0:00:14.7]}
61. Qe2 {[%clk 0:00:04.3]} 61... Qc1+ {[%clk 0:00:14.8]} 62. Qe1 {[%clk
0:00:04.7]} 62... Qc3 {[%clk 0:00:14.8]} 63. Qe2 {[%clk 0:00:04.7]} 63... f5
{[%clk 0:00:13.8]} 64. Kg2 {[%clk 0:00:03.5]} 64... Kf6 {[%clk 0:00:12.5]} 65.
Kh1 {[%clk 0:00:03]} 65... Qc1+ {[%clk 0:00:12.5]} 66. Bf1 {[%clk 0:00:03.2]}
66... f4 {[%clk 0:00:10.3]} 67. Kg2 {[%clk 0:00:03.8]} 67... g5 {[%clk
0:00:10.5]} 68. Kh3 {[%clk 0:00:02.6]} 68... Bb6 {[%clk 0:00:10.9]} 69. Kg2
{[%clk 0:00:02.2]} 69... Qc5 {[%clk 0:00:11.1]} 70. Kh3 {[%clk 0:00:02.7]} 70...
Kg6 {[%clk 0:00:10.6]} 71. Qc4 {[%clk 0:00:02]} 71... Qe7 {[%clk 0:00:09.5]} 72.
Kg4 {[%clk 0:00:01.9]} 72... Kf6 {[%clk 0:00:07.9]} 73. Qc6 {[%clk 0:00:02.2]}
73... Bd4 {[%clk 0:00:07.1]} 74. Bc4 {[%clk 0:00:02.5]} 74... Qf7 {[%clk
0:00:07.4]} 75. Qd6 {[%clk 0:00:02.6]} 75... Qg8 {[%clk 0:00:06.8]} 76. Qd7
{[%clk 0:00:02.4]} 76... Bc3 {[%clk 0:00:05.5]} 77. Qc7 {[%clk 0:00:02.6]} 77...
Bd4 {[%clk 0:00:05.8]} 78. Qd7 {[%clk 0:00:03]} 78... Bb2 {[%clk 0:00:06.1]} 79.
Bb3 {[%clk 0:00:03.4]} 79... Bd4 {[%clk 0:00:06.5]} 80. Qc7 {[%clk 0:00:03.8]}
80... Bb2 {[%clk 0:00:06.7]} 81. Qd6 {[%clk 0:00:03.6]} 81... Bd4 {[%clk
0:00:07.1]} 82. h3 {[%clk 0:00:02.7]} 82... fxg3 {[%clk 0:00:07.2]} 83. Kxg3
{[%clk 0:00:03]} 83... Be3 {[%clk 0:00:04.8]} 84. Kg4 {[%clk 0:00:02.4]} 84...
Bf4 {[%clk 0:00:05.4]} 85. Qd7 {[%clk 0:00:02.7]} 85... Be3 {[%clk 0:00:05.7]}
86. Qc7 {[%clk 0:00:02.6]} 86... Qh8 {[%clk 0:00:05.4]} 87. f4 {[%clk
0:00:01.2]} 87... Qh4+ {[%clk 0:00:05.6]} 88. Kf3 {[%clk 0:00:02.1]} 88... Qf2+
{[%clk 0:00:06.1]} 89. Kg4 {[%clk 0:00:02.3]} 89... Qxf4+ {[%clk 0:00:07]} 90.
Kh5 {[%clk 0:00:02.9]} 90... Qh4# {[%clk 0:00:07.9]} 0-1